bitfinex/quotes_ETHUSD_20250801
["timestamp","ask_amount","ask_price","bid_price","bid_amount"]
[1754079166995,6.934,3512.0,3511.9,35.84746148]
[1754079167290,12.047,3512.0,3511.9,35.84746148]
[1754079167494,12.147,3512.0,3511.9,33.0]
[1754079167733,14.4713,3512.0,3511.9,33.0]
[1754079167937,12.147,3512.0,3511.9,33.0]
[1754079168302,16.01468041,3512.0,3511.9,33.0]
[1754079168514,14.50349666,3512.0,3511.9,33.0]
[1754079168717,14.58319666,3512.0,3511.9,33.0]
[1754079168932,19.75487707,3512.0,3511.9,33.0]
[1754079169610,19.20487707,3512.0,3511.9,33.0]
[1754079169835,19.75487707,3512.0,3511.9,33.0]
[1754079170038,14.54187707,3512.0,3511.9,33.0]
[1754079170263,19.75187707,3512.0,3511.9,33.0]
[1754079170472,13.99187707,3512.0,3511.9,33.0]
[1754079170654,19.20187707,3512.0,3511.9,30.0]
[1754079170962,2.94754257,3511.8,3511.7,33.0]
[1754079171256,10.48184257,3511.8,3511.7,33.0]
[1754079171427,12.68678453,3511.8,3511.7,33.0]
[1754079171628,12.68678453,3511.8,3511.7,33.72286993]
[1754079172434,12.68478453,3511.8,3511.7,33.72286993]
[1754079172771,13.23381684,3511.8,3511.7,7.692316]
[1754079173134,13.23381684,3511.8,3511.7,3.0]
[1754079173135,13.37621684,3511.8,3511.7,3.0]
[1754079174787,0.1,3510.6,3510.5,24.03267]
[1754079174990,0.1,3510.6,3510.5,26.720763]
[1754079174991,4.49020912,3510.6,3510.5,26.720763]
[1754079175572,4.49020912,3510.6,3510.5,29.56936006]
[1754079175977,4.49020912,3510.6,3510.5,36.30979706]
[1754079176775,6.834,3512.0,3510.5,36.30979706]
[1754079176776,0.1424,3511.4,3510.9,30.0]
[1754079176979,5.203,3511.3,3511.2,33.0]
[1754079177340,5.203,3511.3,3511.2,35.84802916]
[1754079177544,6.834,3512.0,3511.4,33.0]
[1754079177763,6.834,3512.0,3511.6,3.0]
[1754079177764,5.3444,3511.9,3511.6,3.0]
[1754079177977,0.1424,3511.9,3511.8,31.67253957]
[1754079178159,5.202,3511.9,3511.8,28.824997]
[1754079179093,5.202,3511.9,3511.8,21.421258]
[1754079179398,5.202,3511.9,3511.8,3.0]
[1754079179399,12.16106542,3511.9,3511.8,3.0]
[1754079179579,7.60200394,3511.9,3511.8,7.692316]
[1754079179806,6.834,3512.0,3511.9,26.31283648]
[1754079180087,6.834,3512.0,3511.9,35.84746148]
[1754079180088,12.034,3512.0,3511.9,35.84746148]
[1754079180246,12.034,3512.0,3511.9,35.98986148]
[1754079180443,5.84683593,3512.0,3511.9,36.45106148]
[1754079180771,0.001,3512.4,3512.3,35.8471372]
[1754079180959,5.2,3512.4,3512.3,19.739677]
[1754079181280,5.2,3512.4,3512.3,22.5868142]
[1754079181484,5.6703,3512.4,3512.3,7.455697]
[1754079181785,5.8127,3512.4,3512.3,5.614298]
[1754079182082,0.001,3512.4,3512.3,35.8471372]
[1754079182282,5.198,3512.4,3512.3,37.012167]
[1754079182981,5.198,3512.4,3512.3,6.550967]
[1754079183182,5.198,3512.4,3512.3,5.9895372]
[1754079183359,8.51535614,3512.4,3512.3,6.54996782]
[1754079183554,5.3404,3512.4,3512.3,6.54996782]
[1754079183746,0.1434,3512.4,3512.3,9.39710502]
[1754079183941,5.196,3512.4,3512.3,6.54996782]
[1754079184143,5.196,3512.4,3512.3,23.15235782]
[1754079184443,5.196,3512.4,3512.3,20.74965982]
[1754079184643,5.196,3512.4,3512.3,16.35323482]
[1754079184858,9.04719614,3512.4,3512.3,12.46331482]
[1754079185058,8.05414,3512.4,3512.3,15.48218882]
[1754079185263,5.3384,3512.4,3512.3,15.48218882]
[1754079185657,5.196,3512.4,3512.3,18.32932602]
[1754079185962,0.001,3512.4,3512.3,18.32932602]
[1754079186165,5.193,3512.4,3512.3,36.06089102]
[1754079187107,7.3093,3513.3,3513.0,2.84656988]
[1754079187108,6.839,3513.3,3513.0,2.84656988]
[1754079187314,6.839,3513.3,3513.2,32.295998]
[1754079187462,12.029,3513.3,3513.2,27.968679]
[1754079187668,12.029,3513.3,3513.2,22.055119]
[1754079187867,6.839,3513.3,3513.2,22.055119]
[1754079188110,12.029,3513.3,3513.2,23.558101]
[1754079188280,12.029,3513.3,3513.2,21.056111]
[1754079188652,12.029,3513.3,3513.2,23.90251883]
[1754079188764,12.029,3513.3,3513.2,24.04491883]
[1754079189311,12.029,3513.3,3513.2,35.40709783]
[1754079189519,12.029,3513.3,3513.2,30.54607183]
[1754079189812,12.029,3513.3,3513.2,16.643875]
[1754079190012,12.029,3513.3,3513.2,19.49028283]
[1754079190318,12.4993,3513.3,3513.2,6.66964]
[1754079190619,12.6417,3513.3,3513.2,6.66964]
[1754079191062,12.1714,3513.3,3513.2,23.25169]
[1754079191424,2.84649153,3513.1,3512.4,30.62041149]
[1754079191561,5.186,3513.0,3512.7,21.609545]
[1754079191767,5.186,3513.0,3512.9,11.447405]
[1754079191768,5.6563,3513.0,3512.9,11.447405]
[1754079192261,5.6563,3513.0,3512.9,10.80602]
[1754079192587,0.1424,3513.1,3513.0,12.162188]
[1754079192798,8.17188885,3513.1,3513.0,12.162188]
[1754079193003,8.17188885,3513.1,3513.0,3.0]
[1754079193004,12.58904205,3513.1,3513.0,3.0]
[1754079193313,2.84656988,3513.0,3512.4,6.662572]
[1754079193613,0.1424,3512.5,3512.4,7.13985]
[1754079193784,5.7947,3512.5,3512.4,7.13985]
[1754079194202,11.07514508,3512.5,3512.4,6.347512]
[1754079194385,11.07514508,3512.5,3512.4,3.0]
[1754079194872,11.07514508,3512.5,3512.4,6.290522]
[1754079195284,11.07514508,3512.5,3512.4,3.054233]
[1754079195766,11.07514508,3512.5,3512.4,6.054233]
[1754079195989,11.07514508,3512.5,3512.4,9.938895]
[1754079196268,11.07514508,3512.5,3512.4,6.736455]
[1754079196607,8.22817,3512.5,3511.4,0.002]
[1754079196899,2.84768657,3511.7,3511.5,3.0]
[1754079197204,9.68568657,3511.7,3511.6,8.506202]
[1754079197366,15.00608657,3511.7,3511.6,8.506202]
[1754079197572,15.47208657,3511.7,3511.6,5.506202]
[1754079197782,17.30658657,3511.7,3511.6,5.506202]
[1754079197993,17.30658657,3511.7,3511.6,8.71531135]
[1754079198405,12.6244,3511.7,3511.6,8.71531135]
[1754079198701,15.47202365,3511.7,3511.6,8.71531135]
[1754079198918,17.30652365,3511.7,3511.6,6.334202]
[1754079199089,16.47429973,3511.7,3511.6,6.334202]
[1754079199288,12.6244,3511.7,3511.6,6.954681]
[1754079199470,12.1584,3511.7,3511.6,6.954681]
[1754079199965,12.1584,3511.7,3511.6,9.80238574]
[1754079199966,6.838,3511.7,3511.6,9.80238574]
[1754079200306,12.012,3511.7,3511.6,30.46652774]
[1754079200472,12.012,3511.7,3511.6,21.22809405]
[1754079201198,15.32562365,3511.7,3511.6,0.21542705]
[1754079201399,18.99167297,3511.7,3511.6,3.57918905]
[1754079201601,18.99167297,3511.7,3511.6,3.002]
[1754079201916,18.99167297,3511.7,3511.6,0.002]
[1754079202980,19.54167297,3511.7,3511.6,0.002]
[1754079203614,18.99167297,3511.7,3511.6,0.002]
[1754079204019,19.54167297,3511.7,3511.6,0.002]
[1754079205188,3.39778584,3511.5,3511.4,0.002]
[1754079205386,8.70818584,3511.5,3511.4,0.002]
[1754079205686,11.00868584,3511.5,3511.4,1e-08]
[1754079205897,5.167,3511.5,3511.4,1e-08]
[1754079206125,8.01378584,3511.5,3511.4,1e-08]
[1754079206324,0.55,3511.4,3508.6,1.48212418]
[1754079206621,0.55,3511.2,3509.9,19.354128]
[1754079206787,2.84881122,3510.3,3509.9,0.21737611]
[1754079206986,5.165,3510.2,3510.1,9.514995]
[1754079207323,5.632,3510.2,3509.5,30.0]
[1754079207520,2.84954462,3509.4,3508.7,2.85000713]
[1754079207825,2.84934905,3509.6,3508.7,2.85000713]
[1754079207826,2.8499772,3508.8,3508.7,2.45764]
[1754079207987,2.85005842,3508.7,3508.6,0.70035099]
[1754079208182,5.631,3508.8,3508.0,25.536944]
[1754079208492,0.55,3508.7,3508.0,14.60352966]
[1754079208813,0.55,3508.7,3506.8,0.2437194]
[1754079208814,2.85094911,3507.7,3506.8,30.0]
[1754079209139,5.164,3507.6,3507.1,3.0]
[1754079209289,5.164,3507.6,3507.2,13.998723]
[1754079209726,6.84,3507.7,3507.6,30.0]
[1754079209889,11.31847457,3507.7,3507.6,33.0]
[1754079210089,11.31947457,3507.7,3507.6,32.507194]
[1754079210598,11.31947457,3507.7,3507.3,30.0]
[1754079210798,11.31947457,3507.7,3507.3,21.662268]
[1754079211011,11.31947457,3507.7,3507.3,24.056159]
[1754079211215,11.31947457,3507.7,3507.4,3.0]
[1754079211383,3.31695221,3507.6,3507.5,4.082617]
[1754079211590,2.85109108,3507.5,3506.8,17.879375]
[1754079211801,5.162,3507.4,3507.1,3.0]
[1754079212000,5.162,3507.4,3505.9,0.0261]
[1754079212001,2.8513207,3507.2,3506.8,0.20869717]
[1754079212199,2.8513207,3507.2,3506.9,6.47958]
[1754079212200,5.162,3507.1,3506.9,6.47958]
[1754079212488,5.162,3507.1,3505.5,0.72883135]
[1754079212489,6.15547457,3507.7,3507.3,17.949886]
[1754079212842,6.15547457,3507.7,3507.5,28.61839449]
[1754079212991,6.15547457,3507.7,3507.6,35.85095221]
[1754079213191,11.31747457,3507.7,3507.6,35.85095221]
[1754079213503,11.31747457,3507.7,3507.6,22.531385]
[1754079214047,11.31747457,3507.7,3507.6,28.664972]
[1754079214196,11.31747457,3507.7,3507.6,24.67811]
[1754079214532,15.76609297,3507.7,3507.6,3.0]
[1754079214705,15.76609297,3507.7,3507.6,5.888316]
[1754079214908,7.75322203,3507.7,3507.6,5.888316]
[1754079215259,11.31547457,3507.7,3507.6,9.388715]
[1754079215400,6.15547457,3507.7,3507.6,9.388715]
[1754079215756,11.31447457,3507.7,3507.6,9.388715]
[1754079216037,11.45687457,3507.7,3507.6,14.679286]
[1754079216557,11.45687457,3507.7,3507.6,17.53023821]
[1754079216716,11.31447457,3507.7,3507.6,17.53023821]
[1754079217038,11.31447457,3507.7,3507.6,5.85095221]
[1754079217231,11.31447457,3507.7,3507.6,35.85095221]
[1754079217634,11.31347457,3507.7,3507.6,35.85095221]
[1754079217944,11.31347457,3507.7,3507.6,12.272528]
[1754079218147,11.31347457,3507.7,3507.6,8.664158]
[1754079218349,11.31347457,3507.7,3507.6,6.32995]
[1754079218350,11.45587457,3507.7,3507.6,6.32995]
[1754079219046,11.92187457,3507.7,3507.6,10.674064]
[1754079219247,11.45587457,3507.7,3507.6,10.674064]
[1754079219551,11.31147457,3507.7,3507.6,10.674064]
[1754079219851,11.31147457,3507.7,3507.6,8.807348]
[1754079220062,11.31147457,3507.7,3507.6,18.141855]
[1754079220247,6.15547457,3507.7,3507.6,17.82676921]
[1754079220411,11.31147457,3507.7,3507.6,17.82676921]
[1754079220612,11.31047457,3507.7,3507.6,17.82676921]
[1754079220844,6.15547457,3507.7,3507.6,17.85286921]
[1754079221030,0.1424,3507.8,3507.7,5.85087094]
[1754079221232,6.845,3509.1,3508.5,2.85015402]
[1754079221432,0.1424,3508.9,3508.8,3.0]
[1754079221735,0.1424,3508.9,3508.8,33.0]
[1754079221938,0.1424,3508.9,3508.8,35.8499772]
[1754079222130,6.845,3509.1,3509.0,33.0]
[1754079222325,11.999,3509.1,3509.0,35.84981476]
[1754079223218,6.845,3509.1,3509.0,35.84981476]
[1754079223425,11.997,3509.1,3509.0,35.84981476]
[1754079223635,6.845,3509.1,3509.0,35.84981476]
[1754079223917,11.997,3509.1,3509.0,35.84981476]
[1754079224419,0.1424,3509.8,3509.7,32.84924637]
[1754079224620,5.2944,3509.8,3509.7,35.84924637]
[1754079225551,5.2944,3509.8,3509.7,33.0]
[1754079226262,7.312,3510.4,3509.9,2.84903199]
[1754079226263,6.846,3510.4,3509.9,2.84903199]
[1754079226468,6.846,3510.4,3510.3,35.84875936]
[1754079226627,11.994,3510.4,3510.3,35.84875936]
[1754079227266,11.994,3510.4,3510.3,35.99115936]
[1754079227434,11.993,3510.4,3510.3,36.20512219]
[1754079227841,12.4273,3510.4,3510.3,9.13341315]
[1754079228042,13.39237,3510.4,3510.3,8.74065715]
[1754079228256,13.39237,3510.4,3510.3,29.57648915]
[1754079228562,13.82667,3510.4,3510.3,5.82846083]
[1754079228930,16.67534821,3510.4,3510.3,3.21396283]
[1754079229265,16.67534821,3510.4,3510.0,5.495544]
[1754079229266,13.82667,3510.4,3510.0,5.495544]
[1754079229565,6.961967,3510.3,3510.0,2.635011]
[1754079229748,0.1424,3510.1,3510.0,2.635011]
[1754079229985,0.1424,3510.1,3510.0,5.635011]
[1754079229986,5.2864,3510.1,3510.0,5.635011]
[1754079230154,0.1424,3510.1,3510.0,5.84877969]
[1754079230353,9.69467821,3510.4,3510.3,3.0]
[1754079230529,2.84881227,3510.3,3510.2,3.0]
[1754079230726,2.99121227,3510.3,3510.2,14.26495]
[1754079230937,2.84886125,3510.2,3510.1,3.0]
[1754079231166,8.42616125,3510.2,3510.1,7.288763]
[1754079231350,10.50607923,3510.2,3510.1,7.113308]
[1754079231938,7.65721798,3510.2,3510.1,7.113308]
[1754079232148,5.7197,3510.2,3510.1,7.113308]
[1754079232329,5.2854,3510.2,3510.1,7.113308]
[1754079232532,5.7197,3510.2,3510.1,7.244567]
[1754079232730,2.84900284,3510.0,3509.9,0.002]
[1754079232972,9.60660312,3510.0,3509.9,0.002]
[1754079233172,11.94060312,3510.0,3509.9,0.002]
[1754079233344,12.08300312,3510.0,3509.9,0.002]
[1754079233538,12.08300312,3510.0,3508.3,2.8503754]
[1754079233539,2.84986489,3509.0,3508.3,2.8503754]
[1754079233775,7.98989597,3508.9,3508.8,5.374751]
[1754079233978,7.75898649,3508.9,3508.4,4.586619]
[1754079234189,0.1424,3508.0,3507.6,30.0]
[1754079234471,0.1424,3508.0,3507.9,33.0]
[1754079234671,0.1424,3508.0,3507.6,26.042183]
[1754079234672,5.2804,3508.0,3507.6,26.042183]
[1754079234835,5.2804,3508.0,3507.6,19.359541]
[1754079235036,0.1424,3507.8,3507.3,22.1497]
[1754079235251,5.13371932,3507.7,3507.4,20.254173]
[1754079235436,0.1424,3507.6,3507.3,32.8511273]
[1754079235775,5.137,3507.5,3507.4,35.85111478]
[1754079236073,5.137,3507.5,3507.4,2.1148]
[1754079236248,5.137,3507.5,3507.4,2.874721]
[1754079236448,5.137,3507.5,3507.4,5.874721]
[1754079236654,5.137,3507.5,3507.4,2.874721]
[1754079236848,5.137,3507.5,3507.4,12.000887]
[1754079237050,5.5713,3507.5,3507.4,15.000887]
[1754079237749,5.5713,3507.5,3507.4,3.0]
[1754079238001,5.5713,3507.5,3507.4,12.194409]
[1754079238142,5.137,3507.5,3507.4,12.194409]
[1754079238570,0.1424,3507.6,3507.3,0.20917527]
[1754079238571,0.1424,3507.6,3507.5,35.85103349]
[1754079238764,5.2774,3507.6,3507.5,35.85103349]
[1754079239102,0.1424,3507.6,3507.5,35.85103349]
[1754079239258,0.1424,3508.9,3508.7,3.0]
[1754079239582,6.844,3509.6,3509.5,32.77711274]
[1754079239784,6.9864,3509.6,3509.5,32.77711274]
[1754079239996,11.977,3509.6,3509.5,35.99180874]
[1754079240160,11.977,3509.6,3509.5,17.769908]
[1754079240497,6.844,3509.6,3509.5,20.61931674]
[1754079240796,0.1424,3510.5,3510.4,3.0]
[1754079240944,5.5673,3510.5,3510.4,2.000644]
[1754079241146,5.7097,3510.5,3510.3,3.0]
[1754079241359,5.133,3510.5,3510.4,12.830992]
[1754079241805,5.2754,3510.5,3510.4,12.830992]
[1754079242000,5.7097,3510.5,3510.4,15.362992]
[1754079242167,5.7097,3510.5,3510.4,13.987595]
[1754079242368,6.28077,3510.5,3510.4,10.148378]
[1754079242760,6.28077,3510.5,3510.4,5.757316]
[1754079242761,9.12936706,3510.5,3510.4,5.757316]
[1754079242965,0.5767,3510.5,3510.4,11.473575]
[1754079243276,5.7057,3510.5,3510.4,5.757466]
[1754079243459,8.55429706,3510.5,3510.4,10.595258]
[1754079243666,8.55429706,3510.5,3510.4,8.207258]
[1754079244103,11.00399706,3510.5,3510.4,3.0]
[1754079244321,11.83935035,3510.5,3510.4,3.0]
[1754079244478,5.7047,3510.5,3510.4,13.770497]
[1754079244802,5.7047,3510.5,3510.4,9.952297]
[1754079245048,5.7047,3510.5,3510.4,10.234997]
[1754079245368,5.5352123,3510.5,3510.4,10.234997]
[1754079246069,5.5352123,3510.5,3510.4,16.424342]
[1754079247102,5.5352123,3510.5,3510.4,13.711136]
[1754079247308,5.7047,3510.5,3510.4,7.355084]
[1754079247462,9.12386706,3510.5,3510.4,3.0]
[1754079248061,11.02356706,3510.5,3510.4,3.0]
[1754079248500,11.02356706,3510.5,3510.4,6.116542]
[1754079248704,11.02356706,3510.5,3510.4,3.0]
[1754079249113,11.02356706,3510.5,3510.4,6.107542]
[1754079249608,11.02356706,3510.5,3510.4,3.0]
[1754079249975,11.02356706,3510.5,3510.4,6.107542]
[1754079250308,11.02356706,3510.5,3510.4,5.575542]
[1754079250607,11.02456706,3510.5,3510.4,3.0]
[1754079251011,0.55,3510.4,3509.2,0.1424]
[1754079251170,0.55,3509.4,3507.3,2.87921636]
[1754079251368,10.5676861,3510.3,3508.3,2.85033215]
[1754079251369,0.1424,3508.5,3508.3,2.85033215]
[1754079251604,5.12,3508.4,3508.3,4.515575]
[1754079251796,6.50961103,3508.4,3507.7,6.036018]
[1754079251998,0.1424,3507.9,3507.7,6.036018]
[1754079252188,2.8498238,3509.0,3508.0,2.85057627]
[1754079252395,0.1424,3508.4,3508.3,30.0]
[1754079252605,5.2614,3508.4,3508.3,29.426151]
[1754079252792,5.2614,3508.4,3508.3,32.426151]
[1754079252993,8.54600213,3508.4,3508.3,10.437282]
[1754079253302,9.07214213,3508.4,3508.3,3.0]
[1754079253474,2.85059949,3508.1,3507.7,6.958995]
[1754079253674,0.1424,3507.8,3507.7,5.581738]
[1754079253873,0.1424,3507.8,3507.7,8.43260894]
[1754079254110,0.1424,3507.8,3507.7,5.581738]
[1754079254274,0.1424,3507.8,3507.7,11.43260894]
[1754079254477,0.1424,3507.8,3507.7,30.80933994]
[1754079254873,0.1424,3507.8,3507.7,33.80933994]
[1754079255077,0.1424,3507.8,3507.7,26.631355]
[1754079255278,0.1424,3507.8,3507.7,17.902947]
[1754079255574,0.1424,3507.8,3507.7,16.402398]
[1754079255781,0.1424,3507.8,3507.7,12.826666]
[1754079256516,0.1424,3507.8,3507.7,19.884855]
[1754079256721,0.5985,3507.8,3507.7,8.037349]
[1754079256922,0.1424,3507.8,3507.7,8.037349]
[1754079257601,0.1424,3507.8,3507.7,10.437044]
[1754079257802,0.5985,3507.8,3507.7,10.437044]
[1754079258002,3.44928966,3507.8,3507.7,7.537676]
[1754079258200,0.5985,3507.8,3507.7,7.537676]
[1754079258606,0.5985,3507.8,3507.7,10.386676]
[1754079259127,3.40087094,3507.7,3507.6,0.002]
[1754079259289,12.55727094,3507.7,3507.6,0.002]
[1754079259489,2.85119607,3507.3,3507.2,0.002]
[1754079259714,8.10659607,3507.3,3507.2,5.850184]
[1754079259985,10.41799607,3507.3,3507.2,2.850184]
[1754079260221,11.46376611,3507.3,3507.2,2.850184]
[1754079260420,11.51276611,3507.3,3507.2,5.850184]
[1754079260625,4.54546611,3507.3,3507.2,6.370863]
[1754079260819,9.65646611,3507.3,3507.2,6.370863]
[1754079261042,12.06176611,3507.3,3507.2,0.002]
[1754079262543,0.1424,3507.3,3507.2,3.002]
[1754079262825,8.55969607,3507.3,3507.2,10.293588]
[1754079263004,9.10969607,3507.3,3507.2,3.002]
[1754079263321,9.10969607,3507.3,3507.2,5.857795]
[1754079263523,12.16107617,3507.3,3507.2,3.002]
[1754079263732,12.16107617,3507.3,3507.2,5.857795]
[1754079263901,12.16107617,3507.3,3507.2,3.002]
[1754079264416,12.01867617,3507.3,3504.3,0.14894489]
[1754079264602,0.55,3506.5,3505.0,30.0]
[1754079264801,2.85214006,3506.2,3505.6,21.829979]
[1754079265003,11.955,3506.1,3505.6,21.829979]
[1754079265413,11.955,3506.1,3505.3,2.85279232]
[1754079265414,11.955,3506.1,3505.3,2.85282286]
[1754079265723,11.955,3506.1,3505.2,30.0]
[1754079265724,11.955,3506.1,3505.8,2.85241031]
[1754079265930,5.107,3506.0,3505.4,32.85269285]
[1754079266227,5.107,3506.0,3505.9,26.39406563]
[1754079266424,5.107,3506.0,3505.9,23.535292]
[1754079266625,5.107,3506.0,3505.9,3.0]
[1754079267127,5.107,3506.0,3505.9,24.533384]
[1754079267508,5.107,3506.0,3505.9,20.128174]
[1754079267694,5.107,3506.0,3505.9,18.965553]
[1754079267894,5.61544797,3506.0,3505.5,12.454649]
[1754079268122,6.847,3506.1,3505.7,2.852441]
[1754079268306,5.106,3506.0,3505.8,19.415843]
[1754079268508,5.106,3506.0,3505.5,11.119244]
[1754079268798,0.4561,3505.9,3505.4,2.85270547]
[1754079269038,0.4561,3505.9,3505.0,3.0]
[1754079269039,5.105,3505.8,3505.5,20.352526]
[1754079269244,5.105,3505.8,3505.4,5.8526662]
[1754079269408,6.847,3506.1,3505.8,2.85233826]
[1754079269748,6.847,3506.1,3505.5,30.0]
[1754079269749,5.104,3506.0,3505.5,30.0]
[1754079269889,6.847,3506.1,3505.9,5.85233463]
[1754079270094,6.847,3506.1,3506.0,8.591476]
[1754079270296,0.55,3506.0,3504.3,1.07013046]
[1754079270520,0.55,3505.8,3504.5,30.0]
[1754079270722,2.85280352,3505.4,3504.9,3.0]
[1754079270926,7.95582335,3505.3,3505.0,21.948119]
[1754079271093,7.95582335,3505.3,3504.9,15.97903]
[1754079271094,7.9558247,3505.3,3504.9,15.97903]
[1754079271331,0.55,3505.1,3504.4,14.748365]
[1754079271509,5.5591,3505.0,3504.4,10.609434]
[1754079271725,2.85355553,3504.4,3504.3,0.70766564]
[1754079272007,2.85363696,3504.3,3503.6,30.0]
[1754079272348,5.102,3504.2,3504.1,3.0]
[1754079272634,7.13435555,3504.4,3504.2,15.782534]
[1754079272934,5.101,3504.3,3503.8,2.85401582]
[1754079273129,5.101,3504.3,3503.9,13.113154]
[1754079273446,0.55,3504.1,3503.7,5.00856]
[1754079273648,0.55,3503.9,3503.6,7.332733]
[1754079273943,2.010596,3504.3,3503.4,0.70772964]
[1754079274144,6.85,3504.2,3503.5,11.457283]
[1754079274311,5.101,3504.1,3503.9,7.892796]
[1754079274511,5.5571,3504.1,3503.6,3.0]
[1754079274712,2.85405511,3503.8,3503.6,5.741233]
[1754079274932,7.4114,3503.7,3502.8,7.837977]
[1754079275105,5.1,3503.6,3502.9,28.069235]
[1754079275305,0.55,3503.2,3502.8,14.871618]
[1754079275530,11.949,3503.1,3502.5,30.0]
[1754079275756,0.1424,3502.6,3502.5,2.85510349]
[1754079276058,5.2414,3502.6,3502.5,4.003407]
[1754079276237,2.8552425,3502.4,3501.6,32.85578357]
[1754079276561,0.1424,3501.8,3501.7,33.29409125]
[1754079276722,0.1424,3502.5,3502.1,30.0]
[1754079277053,5.099,3502.4,3502.3,28.733703]
[1754079277263,5.099,3502.4,3502.3,24.623169]
[1754079277552,5.099,3502.4,3502.3,2.85526653]
[1754079277858,0.4561,3503.0,3502.3,2.85526653]
[1754079277859,6.85,3503.1,3502.4,3.0]
[1754079278006,7.952769,3503.0,3502.5,3.0]
[1754079278207,5.098,3502.9,3502.6,26.38236182]
[1754079278406,5.098,3502.9,3502.6,11.954983]
[1754079278750,5.098,3502.9,3502.6,8.687844]
[1754079278751,0.1424,3502.7,3502.6,8.687844]
[1754079279051,0.1424,3502.7,3502.6,3.780766]
[1754079279358,8.09534047,3502.7,3502.6,3.498416]
[1754079279529,6.33541184,3502.7,3502.5,3.0]
[1754079279861,0.4561,3502.6,3501.3,0.1432]
[1754079280151,0.1424,3502.4,3501.7,30.0]
[1754079280366,0.1424,3502.0,3501.9,3.0]
[1754079280652,3.31080885,3503.0,3502.6,3.139149]
[1754079280819,6.85,3503.1,3502.3,24.012661]
[1754079281009,5.096,3503.0,3502.9,33.0]
[1754079281210,5.85,3503.1,3503.0,33.0]
[1754079281546,10.946,3503.1,3503.0,36.50704486]
[1754079281723,10.946,3503.1,3503.0,36.64944486]
[1754079281908,7.3101,3504.4,3503.9,2.85394453]
[1754079282108,7.3101,3504.4,3504.3,25.900438]
[1754079282109,6.854,3504.4,3504.3,25.900438]
[1754079282334,6.854,3504.4,3504.3,31.75407496]
[1754079282508,6.854,3505.9,3504.5,30.0]
[1754079282742,0.1424,3505.1,3505.0,35.85306704]
[1754079283093,0.1424,3505.1,3505.0,33.0]
[1754079283242,6.854,3505.9,3505.6,30.0]
[1754079283438,5.096,3505.8,3505.6,13.356035]
[1754079283703,5.096,3505.8,3505.6,33.0]
[1754079283704,0.1424,3505.7,3505.6,33.0]
[1754079284042,2.99489736,3505.7,3505.6,7.787632]
[1754079284282,0.1424,3505.7,3505.2,0.72880943]
[1754079284490,5.094,3505.6,3505.5,20.7395]
[1754079284840,5.2364,3505.6,3505.5,12.673304]
[1754079285241,10.40037873,3505.6,3505.5,5.806209]
[1754079285481,10.40037873,3505.6,3505.5,5.34065]
[1754079285648,7.24708037,3505.6,3505.5,5.34065]
[1754079285978,5.2354,3505.6,3505.5,17.756311]
[1754079286485,0.1424,3505.6,3505.5,20.6089711]
[1754079286782,5.2344,3505.6,3505.5,8.855228]
[1754079287177,5.092,3505.6,3505.5,11.7078881]
[1754079287380,6.854,3505.9,3505.7,33.0]
[1754079287581,6.854,3505.9,3505.8,35.85241599]
[1754079287760,11.945,3505.9,3505.8,36.44001599]
[1754079288957,11.945,3505.9,3505.8,14.714478]
[1754079288958,12.0874,3505.9,3505.8,14.714478]
[1754079289171,11.943,3505.9,3505.8,14.714478]
[1754079289372,11.943,3505.9,3505.8,17.56689399]
[1754079289780,11.943,3505.9,3505.8,33.0]
[1754079289998,11.943,3505.9,3505.8,11.877686]
[1754079290207,2.85145558,3507.0,3505.8,11.877686]
[1754079290208,0.001,3507.1,3506.1,30.0]
[1754079290407,0.001,3507.1,3506.0,10.0]
[1754079290408,0.001,3507.1,3507.0,35.85143997]
[1754079290706,5.089,3507.1,3507.0,36.06815865]
[1754079291065,5.089,3507.1,3507.0,14.20661868]
[1754079291260,5.089,3507.1,3507.0,17.05805865]
[1754079291798,5.089,3507.1,3507.0,36.65575865]
[1754079291799,5.087,3507.1,3507.0,36.65575865]
[1754079292410,0.1434,3507.8,3507.7,32.85087094]
[1754079292567,0.40867764,3507.8,3507.7,23.385262]
[1754079292880,5.2294,3507.8,3507.7,22.868349]
[1754079293202,10.37248966,3507.8,3507.7,3.0]
[1754079293510,8.04464,3507.8,3507.1,3.474286]
[1754079293716,2.85104424,3507.5,3507.1,3.474286]
[1754079293946,0.1424,3507.2,3506.4,17.976812]
[1754079294214,0.1424,3507.2,3505.9,30.0]
[1754079294215,0.1424,3506.6,3505.9,30.0]
[1754079294522,5.2254,3506.5,3506.4,3.0]
[1754079294684,5.083,3506.5,3506.4,11.22957]
[1754079294889,5.2254,3506.5,3506.0,0.1424]
[1754079295248,5.083,3506.5,3506.4,3.0]
[1754079295398,5.2254,3506.5,3506.4,32.104867]
[1754079295599,5.2254,3506.5,3506.4,33.3327769]
[1754079295801,6.85,3507.4,3506.5,3.0]
[1754079296003,0.001,3507.2,3507.1,10.30724893]
[1754079296167,0.001,3507.2,3507.1,45.59314893]
[1754079296368,0.001,3507.2,3507.1,43.89484893]
[1754079296698,5.083,3507.2,3507.1,35.99375867]
[1754079297024,5.083,3507.2,3507.1,35.85135867]
[1754079297381,5.083,3507.2,3507.1,21.886958]
[1754079297600,5.083,3507.2,3507.1,7.674073]
[1754079297850,5.083,3507.2,3506.1,2.8521014]
[1754079297851,14.77842,3507.2,3506.1,2.8521014]
[1754079297972,14.33022,3507.2,3506.1,23.038487]